bitfinex-derivatives/quotes_ETHF0:USTF0_20251001
["timestamp","ask_amount","ask_price","bid_price","bid_amount"]
[1759361598435,0.41533,4331.7,4331.6,0.82229918]
[1759361598636,0.95505,4331.5,4331.4,0.82229918]
[1759361598941,0.7464,4331.3,4331.2,1.14343485]
[1759361599142,1.92696381,4331.3,4331.2,0.77593567]
[1759361603849,0.9695,4332.0,4331.9,0.4319]
[1759361604053,3.2078,4332.1,4332.0,0.1238]
[1759361604356,4.39195,4332.6,4332.5,0.8763]
[1759361604543,4.39195,4332.6,4332.5,0.9875]
[1759361605249,3.6449,4332.6,4332.5,1.1113]
[1759361605450,3.4225,4332.6,4332.5,1.1113]
[1759361606446,3.2078,4332.6,4332.5,1.1113]
[1759361606652,3.2078,4333.2,4333.1,0.7525]
[1759361606848,3.4225,4333.2,4333.1,0.9875]
[1759361607047,3.9767,4333.2,4333.1,0.9875]
[1759361608255,3.6449,4333.2,4333.1,0.9875]
[1759361609153,3.4225,4333.2,4333.1,0.9875]
[1759361609749,3.9767,4333.2,4333.1,0.235]
[1759361610143,0.4371,4332.9,4332.8,0.5319]
[1759361610453,0.7689,4332.9,4332.8,0.7669]
[1759361610752,0.7689,4332.9,4332.8,0.9875]
[1759361611653,0.4371,4332.9,4332.8,0.9875]
[1759361613054,0.2147,4332.9,4332.8,0.9875]
[1759361613651,3.2078,4333.2,4333.0,0.1238]
[1759361613854,3.2078,4333.2,4333.1,0.9875]
[1759361615657,3.4225,4333.2,4333.1,0.9875]
[1759361615960,3.9767,4333.2,4333.1,0.3206]
[1759361616257,0.7689,4332.9,4332.8,1.35403368]
[1759361616556,1.18412,4332.9,4332.8,1.58903368]
[1759361616756,1.18412,4332.9,4332.8,1.80963368]
[1759361617255,1.18412,4332.9,4332.8,0.9875]
[1759361617456,1.18412,4332.9,4332.8,1.80963368]
[1759361617651,1.18412,4332.9,4332.6,0.41524]
[1759361617652,0.62994,4332.7,4332.6,1.03343368]
[1759361617859,0.85234,4332.7,4332.6,0.9875]
[1759361618453,0.62994,4332.7,4332.6,0.9875]
[1759361619160,0.85234,4332.7,4332.6,0.9875]
[1759361620366,1.18414,4332.7,4332.6,0.9875]
[1759361621961,0.7689,4332.7,4332.6,0.9875]
[1759361622766,0.4371,4332.7,4332.6,0.9875]
[1759361623466,0.41521,4333.0,4332.7,0.41524]
[1759361623658,0.2147,4333.0,4332.9,0.7525]
[1759361624065,0.2546,4333.1,4333.0,0.8763]
[1759361624264,0.0399,4333.1,4333.0,1.1113]
[1759361624463,3.2078,4333.2,4333.1,0.8471]
[1759361624663,3.2078,4333.2,4333.1,1.1677]
[1759361624863,0.62986,4333.6,4333.5,0.8763]
[1759361625064,0.62986,4333.6,4333.5,1.1113]
[1759361625265,0.2147,4333.6,4333.5,1.1113]
[1759361628267,0.4371,4333.6,4333.5,1.1113]
[1759361629169,0.7689,4333.6,4333.5,1.1113]
[1759361629558,0.7689,4333.6,4333.5,0.8763]
[1759361629764,0.7689,4333.6,4333.5,1.1113]
[1759361630061,0.4371,4333.6,4333.5,1.1113]
[1759361630260,0.4371,4333.6,4333.5,0.8763]
[1759361630462,0.2147,4333.6,4333.5,1.1113]
[1759361630770,0.62985,4333.6,4333.5,1.1113]
[1759361630967,0.85225,4333.6,4333.5,1.1113]
[1759361634268,1.17935,4333.6,4333.5,1.1113]
[1759361634772,1.17935,4333.6,4333.5,0.235]
[1759361635168,1.17935,4333.6,4333.5,0.7893]
[1759361636174,0.83117,4333.4,4333.3,0.82213368]
[1759361636474,1.15827,4333.4,4333.3,1.05713368]
[1759361636668,1.15827,4333.4,4333.3,0.82213368]
[1759361636869,1.15828,4333.3,4333.2,0.82213368]
[1759361637066,0.4152,4333.1,4333.0,0.82213368]
[1759361637263,1.1583,4333.1,4333.0,1.05713368]
[1759361637469,1.1583,4333.1,4333.0,1.39183368]
[1759361637669,1.1583,4333.1,4333.0,0.5697]
[1759361639071,1.1583,4333.1,4333.0,0.7893]
[1759361639372,1.1583,4333.1,4333.0,0.5697]
[1759361640169,1.1583,4333.1,4333.0,0.7893]
[1759361640374,1.1583,4333.1,4333.0,1.61242606]
[1759361641270,0.41526,4332.5,4332.4,0.82312606]
[1759361641476,0.7431,4332.4,4332.3,0.82312606]
[1759361641775,0.41528,4332.3,4332.1,0.82312606]
[1759361641977,0.83128,4332.3,4332.2,0.5543]
[1759361642474,1.15838,4332.3,4332.2,0.5543]
[1759361642776,1.15838,4332.3,4332.2,0.7752]
[1759361643383,0.2049,4332.0,4331.9,0.82312606]
[1759361643675,0.2049,4332.0,4331.5,0.5543]
[1759361643676,0.7431,4331.6,4331.5,0.5543]
[1759361643872,1.50804761,4331.6,4331.5,0.7893]
[1759361644180,1.50804761,4331.6,4331.5,0.9235]
[1759361644377,1.39353695,4331.6,4331.5,1.1444]
[1759361646783,1.39353695,4331.6,4331.5,1.0102]
[1759361649176,0.416,4331.3,4331.2,0.55713567]
[1759361649481,1.80890695,4331.3,4331.2,1.01303567]
[1759361650278,1.48180695,4331.3,4331.2,1.01303567]
[1759361651676,0.85533695,4331.3,4331.2,1.01303567]
[1759361651881,1.39353695,4331.3,4331.2,0.79213567]
[1759361652179,1.06643695,4331.3,4331.2,1.01303567]
[1759361653180,0.85533695,4331.3,4331.2,1.01303567]
[1759361655078,1.06643695,4331.3,4331.2,1.01303567]
[1759361655278,1.39353695,4331.3,4331.2,1.01303567]
[1759361655585,1.06643695,4331.3,4331.2,1.01303567]
[1759361655785,1.39353695,4331.3,4331.2,1.01303567]
[1759361655988,0.85533695,4331.3,4331.2,0.77803567]
[1759361656190,1.39353695,4331.3,4331.2,1.01303567]
[1759361657087,1.06643695,4331.3,4331.2,1.01303567]
[1759361658285,1.39353695,4331.3,4331.2,1.01303567]
[1759361659788,1.39353695,4331.3,4331.2,0.00283567]
[1759361659986,1.39353695,4331.3,4331.2,0.23783567]
[1759361660587,1.39353695,4331.3,4331.2,0.00283567]
[1759361661388,1.39353695,4331.3,4331.2,0.32853567]
[1759361662084,1.39353695,4331.3,4331.2,0.00283567]
[1759361662288,1.18454,4330.6,4330.5,0.9063]
[1759361662489,1.83497695,4330.6,4330.5,0.7861]
[1759361662790,1.83497695,4330.6,4330.5,1.1389]
[1759361662791,0.65043695,4330.6,4330.5,1.1389]
[1759361663287,0.65232538,4330.6,4330.5,1.1409255]
[1759361663591,0.00188843,4330.6,4330.5,1.1409255]
[1759361663787,0.65232538,4330.6,4330.5,1.1409255]
[1759361665195,0.86882538,4330.6,4330.5,1.1409255]
[1759361665397,0.0399,4331.5,4330.5,8.5766255]
[1759361665593,0.62129,4333.2,4333.1,0.7453]
[1759361665793,0.62129,4333.2,4333.1,0.9813]
[1759361666297,0.41519,4333.2,4333.1,0.9813]
[1759361666491,0.41722495,4333.2,4333.1,0.9813]
[1759361666687,0.83862495,4333.2,4333.1,0.7453]
[1759361666891,1.14992495,4333.2,4333.1,0.9813]
[1759361668583,0.5266,4333.1,4333.0,0.2169]
[1759361668787,1.38313695,4333.1,4333.0,0.4529]
[1759361669494,1.79833695,4333.1,4333.0,0.7736]
[1759361669797,1.14993495,4333.2,4333.1,0.7453]
[1759361670694,1.14993495,4333.2,4333.1,0.9813]
[1759361670897,1.8003719,4333.2,4333.1,0.9813]
[1759361672995,1.8003719,4333.2,4333.1,0.236]
[1759361673389,1.8003719,4333.2,4333.1,0.4529]
[1759361673700,1.8003719,4333.2,4333.1,0.7736]
[1759361674686,0.62133,4332.8,4332.7,0.83264621]
[1759361674886,1.79836695,4332.8,4332.7,0.7453]
[1759361675192,1.79836695,4332.8,4332.7,0.9803]
[1759361675796,1.79836695,4332.8,4332.7,0.7726]
[1759361676695,1.06566695,4332.8,4332.7,0.9803]
[1759361677091,1.27176695,4332.8,4332.7,0.9803]
[1759361677296,1.48706695,4332.8,4332.7,0.9803]
[1759361677492,1.79836695,4332.8,4332.7,0.9813]
[1759361678396,1.79836695,4332.8,4332.7,0.9803]
[1759361678902,0.41523,4332.8,4332.7,0.9803]
[1759361679096,0.41523,4332.8,4332.7,0.7453]
[1759361679399,0.41523,4332.8,4332.7,0.9803]
[1759361683602,0.00203495,4333.2,4332.7,0.6596]
[1759361683800,0.4152,4333.1,4333.0,0.875]
[1759361684406,1.1479,4333.1,4333.0,0.875]
[1759361684595,1.1479,4333.1,4333.0,1.11]
[1759361685096,1.1479,4333.1,4333.0,0.875]
[1759361685296,0.7327,4333.1,4333.0,0.235]
[1759361686104,0.83663,4332.8,4332.7,0.2169]
[1759361686404,1.14793,4332.8,4332.7,0.9803]
[1759361687497,1.14793,4332.8,4332.7,0.7453]
[1759361687703,1.14793,4332.8,4332.7,0.7726]
[1759361688794,1.14797,4332.4,4332.3,1.15257204]
[1759361688999,1.79840695,4332.4,4332.3,1.38757204]
[1759361689396,1.79840695,4332.4,4332.3,0.7726]
[1759361689601,1.79840695,4332.4,4332.3,0.235]
[1759361690306,0.4153,4332.0,4331.9,1.17067204]
[1759361690506,1.79843695,4332.0,4331.9,0.7726]
[1759361692107,1.79843695,4332.0,4331.9,0.5376]
[1759361692299,1.79843695,4332.0,4331.9,0.7726]
[1759361693204,1.79843695,4332.0,4331.9,1.38757204]
[1759361694201,1.79843695,4332.0,4331.9,0.7726]
[1759361694600,1.79843695,4332.0,4331.9,0.5376]
[1759361694903,0.41534,4331.6,4331.5,4.33616779]
[1759361695209,1.27625,4331.5,4331.4,0.6172342]
[1759361696307,1.27625,4331.5,4331.3,0.8522342]
[1759361696506,0.7608,4331.4,4331.3,0.6172342]
[1759361696703,0.7608,4331.4,4331.3,0.235]
[1759361697103,0.7608,4331.4,4331.3,0.5425]
[1759361697304,0.7608,4331.4,4331.3,0.7597]
[1759361697904,0.7608,4331.4,4331.3,0.235]
[1759361698804,1.17619,4331.1,4331.0,0.5247]
[1759361699111,1.17623,4330.7,4330.6,1.56566779]
[1759361699308,1.82666695,4330.7,4330.6,0.9798]
[1759361700611,1.49656695,4330.7,4330.6,0.9798]
[1759361701307,0.41543,4330.7,4330.6,0.9798]
[1759361701905,0.41543,4330.7,4330.6,5.9798]
[1759361702409,3.2078,4331.1,4331.0,0.1295]
[1759361702599,3.4242,4331.7,4331.6,0.7448]
[1759361702798,3.4242,4331.7,4331.6,0.9798]
[1759361703001,3.6385,4331.7,4331.6,0.9798]
[1759361703202,4.38393,4331.7,4331.6,0.9798]
[1759361703708,4.38393,4331.7,4331.6,0.7597]
[1759361704010,4.38393,4331.7,4331.6,0.5425]
[1759361704913,4.38393,4331.7,4331.6,0.7597]
[1759361705707,4.38393,4331.7,4331.6,0.9798]
[1759361709013,4.05383,4331.7,4331.6,0.9798]
[1759361709516,3.62313,4331.7,4331.6,0.9798]
[1759361709813,3.83953,4331.7,4331.6,0.9798]
[1759361710403,3.4242,4331.7,4331.6,0.9798]
[1759361710603,3.2078,4331.7,4331.6,0.9798]
[1759361710913,3.62309,4332.2,4332.1,0.7448]
[1759361711112,3.62309,4332.2,4332.1,0.9798]
[1759361711709,3.2078,4332.2,4332.1,0.9798]
[1759361711908,0.41528,4332.3,4332.1,0.6723]
[1759361712109,1.18063462,4332.5,4332.2,0.4373]
[1759361712311,0.41526,4332.5,4332.4,0.4373]
[1759361712511,0.63166,4332.5,4332.4,0.7448]
[1759361714014,1.17606,4332.5,4332.4,0.7448]
[1759361717114,1.17606,4332.5,4332.4,0.5247]
[1759361717415,1.17606,4332.5,4332.4,0.3075]
[1759361718013,3.2078,4332.7,4332.0,0.3467]
[1759361718014,0.41529,4332.1,4332.0,0.3467]
[1759361718214,1.17609,4332.1,4332.0,0.4522]
[1759361718415,1.17609,4332.1,4332.0,0.2172]
[1759361718720,1.17609,4332.1,4332.0,0.7597]
[1759361719425,1.17609,4332.1,4332.0,0.5247]
[1759361719624,1.17609,4332.1,4332.0,0.7597]
[1759361720622,1.17609,4332.1,4332.0,0.5247]
[1759361720818,1.17609,4332.1,4332.0,0.7597]
[1759361721918,1.17609,4332.1,4332.0,0.5247]
[1759361722118,1.17609,4332.1,4332.0,0.7597]
[1759361723033,0.8701,4332.0,4331.9,3.2078]
[1759361723224,0.7696,4332.0,4331.9,3.7599]
[1759361723426,0.7696,4332.0,4331.9,3.9671]
[1759361723824,0.7696,4332.0,4331.9,3.7321]
[1759361724024,0.8701,4332.0,4331.9,3.4428]
[1759361724227,0.8701,4332.0,4331.9,3.9585]
[1759361724228,0.7696,4332.0,4331.9,3.9585]
[1759361724429,0.7696,4332.0,4331.9,3.7235]
[1759361724630,0.7696,4332.0,4331.9,3.9585]
[1759361725119,0.7679,4331.8,4331.7,1.02726779]
[1759361725321,1.53327462,4331.8,4331.7,0.7507]
[1759361726730,1.53327462,4331.8,4331.7,0.5157]
[1759361726925,1.53327462,4331.8,4331.7,0.9665]
[1759361729117,1.53327462,4331.8,4331.7,0.5157]
[1759361729316,1.53327462,4331.8,4331.7,0.7507]
[1759361729828,1.53327462,4331.8,4331.7,0.5157]
[1759361730018,1.53327462,4331.8,4331.7,0.7507]
[1759361734030,0.97763,4331.7,4331.6,0.3093]
[1759361734324,1.18325,4331.5,4331.4,1.33656779]
[1759361734523,1.94862462,4331.5,4331.4,1.57156779]
[1759361735723,2.29607462,4332.0,4331.6,0.7315]
[1759361735921,2.91698462,4332.0,4331.9,0.7315]
[1759361736124,3.13858462,4332.0,4331.9,0.7315]
[1759361738434,1.18322,4331.8,4331.7,0.235]
[1759361738927,1.18322,4331.8,4331.7,0.9665]
[1759361739132,1.18322,4331.8,4331.7,0.7507]
[1759361741635,0.41534,4331.6,4331.5,0.82086779]
[1759361741839,1.94861462,4331.6,4331.5,0.235]
[1759361742026,1.60791462,4331.6,4331.4,0.82086779]
[1759361742231,0.84256,4331.4,4331.3,1.13016779]
[1759361742435,1.18326,4331.4,4331.3,1.36516779]
[1759361742733,1.18326,4331.4,4331.3,1.57156779]
[1759361742934,1.18326,4331.4,4331.3,0.235]
[1759361743839,1.18326,4331.4,4331.3,0.5443]
[1759361745142,1.18326,4331.4,4331.3,0.7507]
[1759361746839,0.84256,4331.4,4331.3,0.9665]
[1759361747144,0.41535,4331.6,4331.5,0.8553]
[1759361748937,4.05029,4332.1,4332.0,0.8553]
[1759361749138,5.15636462,4332.1,4332.0,0.8553]
[1759361750045,3.4134,4332.1,4332.0,0.8553]
[1759361750846,3.2078,4332.1,4332.0,0.8553]
[1759361751539,0.41529,4332.2,4332.1,0.3093]
[1759361751740,0.76537462,4332.3,4332.1,0.7315]
[1759361751939,1.18065462,4332.3,4332.2,0.3093]
[1759361752250,1.18065462,4332.3,4332.2,0.7315]
[1759361752841,0.41526,4332.5,4332.2,0.7315]
[1759361753039,0.41526,4332.5,4332.4,0.7315]
[1759361753243,1.18316,4332.5,4332.4,0.7315]
[1759361755140,1.17688,4332.3,4332.1,0.82086779]
[1759361755344,0.85839,4332.1,4332.0,1.04626779]
[1759361755542,0.85839,4332.1,4332.0,0.82086779]
[1759361755744,1.17689,4332.1,4332.0,1.05586779]
[1759361756141,0.4431,4331.6,4331.5,0.82086779]
[1759361756447,1.52697462,4331.6,4331.5,0.7989]
[1759361757245,1.94231462,4331.6,4331.5,0.7989]
[1759361758047,1.94231462,4331.6,4331.5,0.5639]
[1759361758346,1.94231462,4331.6,4331.5,1.0256]
[1759361758547,1.94231462,4331.6,4331.5,1.1499]
[1759361758747,1.62381462,4331.6,4331.5,1.1499]
[1759361758948,1.20847462,4331.6,4331.5,1.97076779]
[1759361759950,0.4431,4331.6,4331.5,1.39726779]
[1759361760150,0.4431,4331.6,4331.5,1.97076779]
[1759361760947,3.4241,4332.1,4332.0,0.1243]
[1759361761154,3.62309,4332.1,4332.0,1.1499]
[1759361761845,3.2078,4332.1,4332.0,1.1499]
[1759361762147,0.63155,4332.6,4332.5,0.9149]
[1759361762448,0.63155,4332.6,4332.5,1.1499]
[1759361762645,1.17685,4332.6,4332.5,1.1499]
[1759361763651,0.41528,4332.3,4332.2,0.82086779]
[1759361763853,1.94225462,4332.3,4332.2,1.50796779]
[1759361764048,1.94225462,4332.3,4332.2,0.4521]
[1759361764348,1.94225462,4332.3,4332.2,1.0256]
[1759361764850,1.94225462,4332.3,4332.2,0.7989]
[1759361765250,1.94225462,4332.3,4332.2,0.5639]
[1759361765553,1.94225462,4332.3,4332.2,0.7989]
[1759361766151,1.94225462,4332.3,4332.2,0.5735]
[1759361766346,1.94225462,4332.3,4332.2,0.235]
[1759361766547,1.94225462,4332.3,4332.2,0.5735]
[1759361766949,1.94225462,4332.3,4332.2,1.0256]
[1759361767553,1.19,4332.6,4332.2,1.0256]
[1759361767850,1.18063462,4332.5,4332.4,0.7906]
[1759361768057,1.39693462,4332.5,4332.4,0.7906]
[1759361768257,1.2816758,4332.5,4332.4,1.0256]
[1759361769756,0.6501158,4332.5,4332.4,1.0256]
[1759361770854,0.8664158,4332.5,4332.4,1.0256]
[1759361773057,1.4117158,4332.5,4332.4,1.0256]
[1759361773249,0.4431,4332.2,4332.0,0.82086779]
[1759361773454,1.5084958,4332.2,4332.1,0.7989]
[1759361774055,1.8269958,4332.2,4332.1,0.7989]
[1759361774250,1.8269958,4332.2,4332.1,0.5735]
[1759361774450,1.8269958,4332.2,4332.1,0.235]
[1759361775555,1.8269958,4332.2,4332.0,0.82086779]
[1759361775757,0.7616,4332.1,4332.0,1.15936779]
[1759361776054,0.7616,4332.1,4332.0,1.61976779]
[1759361776957,0.7616,4332.1,4332.0,1.97076779]
[1759361778258,0.7616,4332.1,4332.0,1.1499]
[1759361778956,0.7616,4332.1,4332.0,1.0256]
[1759361779554,0.7616,4332.1,4332.0,0.7906]
[1759361779757,0.7616,4332.1,4332.0,0.7989]
[1759361780257,0.7616,4332.1,4332.0,0.5639]
[1759361780459,0.7616,4332.1,4332.0,1.62199784]
[1759361780658,0.7616,4332.1,4332.0,0.7989]
[1759361781062,0.7616,4332.1,4332.0,1.62199784]
[1759361781257,0.4431,4332.1,4332.0,1.97299784]
[1759361782062,4.2731958,4332.2,4332.1,0.7671]
[1759361782261,4.4807958,4332.2,4332.1,0.7671]
[1759361782560,5.0170958,4332.2,4332.1,1.0021]
[1759361782760,1.4806958,4332.2,4332.1,1.0021]
[1759361782957,1.4806958,4332.2,4332.1,1.82519784]
[1759361783657,1.8034958,4332.2,4332.1,1.82519784]
[1759361784557,1.3957,4332.6,4332.5,0.9006]
[1759361784768,1.19,4332.6,4332.5,1.1356]
[1759361786558,1.19,4332.6,4332.5,1.95860239]
[1759361787457,1.19,4332.6,4332.5,1.1356]
[1759361788364,1.19,4332.6,4332.5,1.95860239]
[1759361788563,1.6134,4332.6,4332.5,1.95860239]
[1759361789059,1.6134,4332.6,4332.5,1.72360239]
[1759361789260,1.9362,4332.6,4332.5,1.95860239]
[1759361789963,0.7462,4332.6,4332.5,1.95860239]
[1759361791062,0.4234,4332.6,4332.5,1.95860239]
[1759361792262,1.19,4333.0,4332.9,0.7717]
[1759361792561,1.3957,4333.0,4332.9,1.0067]
[1759361792760,1.19,4333.0,4332.9,1.0067]
[1759361792960,0.65215075,4333.2,4333.1,0.7717]
[1759361793364,0.85785075,4333.2,4333.1,0.7717]
[1759361793560,1.39835075,4333.2,4333.1,0.7717]
[1759361793757,0.94363,4333.8,4333.7,0.7717]
[1759361793967,1.8114458,4333.8,4333.7,1.0067]
[1759361794757,1.8141299,4333.8,4333.7,1.00952868]
[1759361795856,1.8141299,4333.8,4333.7,0.00282868]
[1759361796057,1.8141299,4333.8,4333.7,0.23782868]
[1759361798162,1.8141299,4333.8,4333.7,0.00282868]
[1759361798566,6.8141299,4333.8,4333.7,0.00282868]
[1759361799666,1.8141299,4333.8,4333.7,0.00282868]
[1759361801367,1.8141299,4333.8,4333.7,0.56412868]
[1759361801757,1.8141299,4333.8,4333.7,0.77452868]
[1759361804268,1.4913299,4333.8,4333.7,0.77452868]
[1759361805464,1.8141299,4333.8,4333.7,0.00282868]
[1759361812486,1.8141299,4333.8,4333.7,0.56412868]
[1759361813991,1.8141299,4333.8,4333.7,0.77432868]
[1759361814391,1.8141299,4333.8,4333.7,0.00282868]
[1759361814584,1.8141299,4333.8,4333.7,0.31202868]
[1759361815283,1.8141299,4333.8,4333.7,0.00282868]
[1759361820287,1.8141299,4333.8,4333.7,0.53062868]
[1759361822290,1.8141299,4333.8,4333.7,0.00282868]
[1759361823091,1.8141299,4333.8,4333.7,8.68e-06]
[1759361826392,2.0481299,4333.8,4333.7,8.68e-06]
[1759361828596,3.2381299,4333.8,4333.7,8.68e-06]
[1759361829095,2.6813299,4333.8,4333.7,0.73800868]
[1759361829696,2.4636299,4333.8,4333.7,0.73800868]
[1759361829997,1.1926841,4333.8,4333.7,5.73800868]
[1759361830190,1.1926841,4333.8,4333.7,6.56131431]
[1759361830494,1.1926841,4333.8,4333.7,5.73800868]
[1759361830689,0.0026841,4333.8,4333.7,5.73800868]
[1759361831302,0.0026841,4333.8,4333.7,6.96931037]
[1759361835303,0.0026841,4333.8,4333.7,5.97200868]
[1759361841503,0.0026841,4333.8,4333.7,6.79253301]
[1759361843900,0.2201841,4333.8,4333.7,6.79253301]
[1759361844709,0.0026841,4333.8,4333.7,1.55853301]
[1759361844910,0.2201841,4333.8,4333.7,1.79253301]
[1759361846404,0.0026841,4333.8,4333.7,1.79253301]
[1759361846604,0.2201841,4333.8,4333.7,1.79253301]
[1759361846802,0.7765841,4333.8,4333.7,0.97200868]
[1759361848603,0.2201841,4333.8,4333.7,0.97200868]
[1759361848810,0.0026841,4333.8,4333.7,0.97200868]
[1759361849604,0.0026841,4333.8,4333.7,0.73800868]
[1759361849906,0.0026841,4333.8,4333.7,0.97200868]
[1759361850710,0.2201841,4333.8,4333.7,0.97200868]
[1759361856308,0.0026841,4333.8,4333.7,0.97200868]
[1759361856510,0.0026841,4333.8,4333.7,1.79253301]
[1759361858506,1.54111356,4333.8,4333.7,0.73800868]
[1759361858708,1.54111356,4333.8,4333.7,0.97200868]
[1759361859813,1.54111356,4333.8,4333.7,0.73800868]
[1759361860010,1.54111356,4333.8,4333.7,0.97200868]
[1759361862018,0.98471356,4333.8,4333.7,0.97200868]
[1759361862919,1.32431356,4333.8,4333.7,0.97200868]
[1759361863412,0.98471356,4333.8,4333.7,0.97200868]
[1759361864213,0.98471356,4333.8,4333.7,0.73800868]
[1759361864414,0.98471356,4333.8,4333.7,0.97200868]
[1759361866120,1.54111356,4333.8,4333.7,0.97200868]
[1759361866319,1.20151356,4333.8,4333.7,0.97200868]
[1759361867519,0.98471356,4333.8,4333.7,0.97200868]
[1759361867714,0.0026841,4333.8,4333.7,0.97200868]
[1759361869322,0.0026841,4333.8,4333.7,1.79419708]
[1759361869521,0.0026841,4333.8,4333.7,0.97200868]
[1759361870122,0.4369841,4333.8,4333.7,0.73800868]
[1759361870323,0.7765841,4333.8,4333.7,0.97200868]
[1759361870914,0.4369841,4333.8,4333.7,0.97200868]
[1759361871117,0.2201841,4333.8,4333.7,0.97200868]
[1759361872018,0.0026841,4333.8,4333.7,0.97200868]
[1759361872627,0.2201841,4333.8,4333.7,0.97200868]
[1759361874221,0.2201841,4333.8,4333.7,0.73800868]
[1759361874518,0.2201841,4333.8,4333.7,0.97200868]
[1759361874825,0.0026841,4333.8,4333.7,0.97200868]
[1759361875325,0.0026841,4333.8,4333.7,1.79419708]
[1759361878921,0.2258841,4333.8,4333.7,1.79419708]
[1759361879627,0.7557841,4333.8,4333.7,1.79419708]
[1759361880314,0.4425841,4333.8,4333.7,1.79419708]
[1759361881926,0.7557841,4333.8,4333.7,1.56019708]
[1759361882123,0.7557841,4333.8,4333.7,0.52780868]
[1759361882328,0.7557841,4333.8,4333.7,0.54320868]
[1759361882926,0.4425841,4333.8,4333.7,8.68e-06]
[1759361884828,6.6325841,4333.8,4333.7,8.68e-06]
[1759361885329,1.6325841,4333.8,4333.7,0.75160868]
[1759361886522,1.9457841,4333.8,4333.7,0.75160868]
[1759361891627,1.1926841,4333.8,4333.7,0.75160868]
[1759361892228,1.84243761,4333.8,4333.7,0.75160868]
[1759361896436,2.06563761,4333.8,4333.7,0.75160868]
[1759361896638,1.84243761,4333.8,4333.7,0.75160868]
[1759361897737,1.1926841,4333.8,4333.7,0.75160868]
[1759361898231,1.1926841,4333.8,4333.7,1.57379708]
[1759361899038,3.62287,4334.5,4334.4,0.4235]
[1759361899233,3.2078,4334.5,4334.4,0.9856]
[1759361899437,3.2078,4334.5,4334.4,1.80777567]
[1759361899634,3.2078,4334.5,4334.4,0.9856]
[1759361900134,3.21002008,4334.5,4334.4,1.80720583]
[1759361901940,3.43672008,4334.5,4334.4,1.80720583]
[1759361902139,3.43672008,4334.5,4334.4,0.9856]
[1759361902439,0.22892008,4334.5,4334.4,1.40067]
[1759361902735,0.00222008,4334.5,4334.4,1.80720583]
[1759361903041,0.00222008,4334.5,4334.4,0.9856]
[1759361903540,0.22892008,4334.5,4334.4,0.9856]
[1759361904539,0.77272008,4334.5,4334.4,0.9856]
[1759361905642,0.77272008,4334.5,4334.4,0.234]
[1759361906047,0.7777,4334.3,4334.2,0.5306]
[1759361906240,0.4395,4334.0,4333.9,1.02870583]
[1759361906441,0.7777,4334.0,4333.9,1.26270583]
[1759361906636,1.42745351,4334.0,4333.9,0.2071]
[1759361906837,1.42745351,4334.0,4333.9,0.7646]
[1759361907232,1.42745351,4334.0,4333.9,0.9846]
[1759361908746,0.2177,4334.0,4333.9,0.9846]
[1759361909040,1.06484351,4334.3,4334.2,0.7506]
[1759361909247,1.28254351,4334.3,4334.2,0.9846]
[1759361909642,1.62074351,4334.3,4334.2,0.9846]
[1759361910941,1.84254351,4334.3,4334.2,0.5306]
[1759361911139,1.84254351,4334.3,4334.2,0.7646]
[1759361915449,1.28254351,4334.3,4334.2,0.9846]
[1759361915749,1.50434351,4334.3,4334.2,0.9846]
[1759361915951,1.84254351,4334.3,4334.2,0.9846]
[1759361917252,1.50434351,4334.3,4334.2,0.9846]
[1759361918853,1.84254351,4334.3,4334.2,0.9846]
[1759361922065,1.08925351,4334.3,4334.2,0.9846]
[1759361922263,0.86745351,4334.3,4334.2,0.9846]
[1759361922461,1.19,4334.4,4334.3,0.84218]
[1759361922658,1.19,4334.4,4334.3,1.16568]
[1759361924165,1.19,4334.4,4334.3,0.7506]
[1759361926471,1.19,4334.4,4334.3,1.98190169]
[1759361926766,0.63499008,4334.5,4334.4,0.7506]
[1759361926962,1.84474359,4334.5,4334.4,0.7506]
[1759361927365,1.84474359,4334.5,4334.4,0.9846]
[1759361928057,1.84474359,4334.5,4334.4,0.3235]
[1759361928263,0.7777,4334.4,4334.3,1.55480169]
[1759361928463,0.7777,4334.4,4334.3,0.7646]
[1759361931569,0.85458,4334.3,4334.2,1.23130169]
[1759361931768,1.1928,4334.1,4334.0,1.23130169]
[1759361931970,1.50435351,4334.1,4333.9,1.23130169]
[1759361932172,0.7777,4334.0,4333.9,0.5306]
[1759361932376,0.7777,4334.0,4333.9,0.7646]
[1759361933874,0.4395,4334.0,4333.9,0.9846]
[1759361934177,0.41509,4334.3,4334.2,0.5141]
[1759361934376,0.41509,4334.3,4334.2,0.9606]
[1759361934874,0.64975351,4334.4,4334.3,0.5141]
[1759361935072,0.64975351,4334.4,4334.3,0.7266]
[1759361935571,0.00222008,4334.5,4334.4,0.5141]
[1759361935768,0.00222008,4334.5,4334.4,1.54870374]
[1759361935970,0.21232008,4334.5,4334.4,1.54870374]
[1759361936179,0.86207359,4334.5,4334.4,1.54870374]
[1759361936774,1.40777359,4334.5,4334.4,1.54870374]
[1759361936978,1.40777359,4334.5,4334.4,0.9606]
[1759361937180,1.40777359,4334.5,4334.4,0.7481]
[1759361937372,1.40777359,4334.5,4334.4,0.9606]
[1759361938074,1.40777359,4334.5,4334.4,1.78270374]
[1759361940175,1.40777359,4334.5,4334.4,0.9606]
[1759361940581,1.40777359,4334.5,4334.4,0.7481]
[1759361941286,1.40777359,4334.5,4334.4,0.9606]
[1759361941578,1.82284359,4334.5,4334.3,0.82210374]
[1759361941782,0.7558,4334.4,4334.3,0.82210374]
[1759361942085,0.7558,4334.4,4334.3,1.78270374]
[1759361943884,1.40555351,4334.4,4334.3,1.54870374]
[1759361944081,1.40555351,4334.4,4334.3,0.5426]
[1759361944578,0.41508,4334.3,4334.2,0.82210374]
[1759361944784,0.7558,4334.2,4334.1,0.82210374]
[1759361944985,3.9636,4334.2,4334.1,0.234]
[1759361946177,0.41512,4333.9,4333.8,1.13070374]
[1759361946384,1.17092,4333.9,4333.8,1.36470374]
[1759361946583,1.17092,4333.9,4333.8,1.57020374]
[1759361947682,0.83262,4333.9,4333.7,0.82211242]
[1759361947882,0.64975351,4333.8,4333.7,8.68e-06]
[1759361948078,1.06725351,4333.8,4333.7,0.23400868]